fUSD/lending_fUSD_20260224
["ID","MTS","AMOUNT","RATE_DAILY","PERIOD"]
[406525598,1771911040571,-587.0,0.00014694,2]
[406525599,1771911040580,-481.0,0.00014694,2]
[406525600,1771911040588,-422.01,0.00014694,2]
[406525601,1771911040598,-166.66,0.00014737,2]
[406525602,1771911040608,-1296.51670996,0.00014795,2]
[406525603,1771911040617,-1003.05357398,0.00014795,2]
[406525604,1771911040626,-1500.0,0.00014795,2]
[406525605,1771911040636,-482.62299928,0.00014866,2]
[406525606,1771911040645,-482.62299927,0.00014866,2]
[406525607,1771911040654,-34716.00478995,0.00014878,2]
[406525608,1771911040663,-18299.59793956,0.00014878,2]
[406525609,1771911040673,-176.18400318,0.000149,2]
[406525610,1771911040682,-250.0,0.00015,2]
[406525611,1771911040691,-2057.23131483,0.00015,2]
[406525612,1771911040700,-18027.12324089,0.00015,7]
[406525613,1771911040709,-8008.97204016,0.00015,2]
[406525614,1771911040718,-384.45849214,0.000151,2]
[406525615,1771911040728,-7909.99843419,0.000151,2]
[406525616,1771911040737,-516.0,0.0001512,2]
[406525617,1771911040746,-240439.56128328,0.0001512,2]
[406525618,1771911040755,-166.66,0.00015167,2]
[406525619,1771911040764,-173.87087054,0.00015174,2]
[406525620,1771911040773,-160.0,0.00015174,2]
[406525621,1771911040782,-482.62299928,0.00015229,2]
[406525622,1771911040791,-1517.64,0.000153,2]
[406525623,1771911040800,-255.82806005,0.00015342,2]
[406525624,1771911040809,-34716.00478995,0.00015394,2]
[406525625,1771911040819,-18299.59793956,0.00015394,2]
[406525626,1771911040828,-510.0565306,0.000154,2]
[406525627,1771911040836,-200.0,0.00015401,2]
[406525628,1771911040845,-422.01,0.00015429,2]
[406525629,1771911040854,-912.93686295,0.00015457,2]
[406525630,1771911040863,-1847.79,0.00015471,2]
[406525631,1771911040872,-500.0,0.0001556,2]
[406525632,1771911040881,-482.62299928,0.00015592,2]
[406525633,1771911040891,-154.12,0.00015726,2]
[406525634,1771911040899,-336.05,0.00015726,2]
[406525635,1771911040909,-250.0,0.00015787,2]
[406525636,1771911040919,-2247.75609779,0.00015807,2]
[406525637,1771911040929,-743.50770149,0.00015822,2]
[406525638,1771911040938,-500.0,0.00015822,2]
[406525639,1771911040947,-500.0,0.00015822,2]
[406525640,1771911040957,-500.0,0.00015822,2]
[406525641,1771911040966,-500.0,0.00015822,2]
[406525642,1771911040976,-500.0,0.00015822,2]
[406525643,1771911040985,-500.0,0.00015822,2]
[406525644,1771911040995,-500.0,0.00015822,2]
[406525645,1771911041004,-500.0,0.00015822,2]
[406525646,1771911041013,-500.0,0.00015822,2]
[406525647,1771911041022,-500.0,0.00015822,2]
[406525648,1771911041031,-500.0,0.00015822,2]
[406525649,1771911041040,-250.0,0.00015822,2]
[406525650,1771911041049,-257.5744131,0.00015822,2]
[406525651,1771911041059,-736.0,0.00015877,2]
[406525652,1771911041067,-34716.00478995,0.0001591,2]
[406525653,1771911041076,-18299.59793956,0.0001591,2]
[406525654,1771911041085,-482.62299928,0.00015954,2]
[406525655,1771911041095,-1020.71268231,0.0001598,2]
[406525656,1771911041104,-150.0,0.00016,2]
[406525657,1771911041113,-380.32235674,0.00016,2]
[406525658,1771911041121,-419.22118993,0.00016,2]
[406525659,1771911041131,-150.0,0.00016,2]
[406525660,1771911041139,-458.59827018,0.00016088,2]
[406525661,1771911041148,-500.0,0.00016088,2]
[406525662,1771911041157,-500.0,0.00016088,2]
[406525663,1771911041166,-500.0,0.00016088,2]
[406525664,1771911041175,-500.0,0.00016088,2]
[406525665,1771911041184,-380.32235674,0.000161,2]
[406525666,1771911041193,-3292.0,0.00016104,2]
[406525667,1771911041202,-9999.99,0.00016116,2]
[406525668,1771911041211,-823.0,0.00016128,2]
[406525669,1771911041220,-422.01,0.00016164,2]
[406525670,1771911041229,-5000.00523939,0.000162,5]
[406525671,1771911041241,-380.32235674,0.000162,2]
[406525672,1771911041250,-912.93686295,0.00016271,2]
[406525673,1771911041259,-482.62299928,0.00016317,2]
[406525674,1771911041268,-200.0,0.0001634,2]
[406525675,1771911041276,-771.01748645,0.0001637,2]
[406525676,1771911041285,-34716.00478995,0.00016426,2]
[406525677,1771911041294,-18299.59793956,0.00016426,2]
[406525678,1771911041303,-361.85708907,0.000166,2]
[406525679,1771911041312,-482.62299928,0.00016679,2]
[406525680,1771911041321,-2487.154,0.00016808,2]
[406525681,1771911041330,-193.96,0.00016808,2]
[406525682,1771911041339,-422.01,0.00016898,2]
[406525683,1771911041348,-799.54513345,0.00016918,2]
[406525684,1771911041357,-15636.56,0.00016922,2]
[406525685,1771911041366,-9999.99,0.00016922,2]
[406525686,1771911041375,-34716.00478995,0.00016942,2]
[406525687,1771911041384,-18299.59793956,0.00016942,2]
[406525688,1771911041392,-6623.03809716,0.00016959,2]
[406525689,1771911041402,-200.0,0.00016983,2]
[406525690,1771911041410,-300.0,0.00017,2]
[406525691,1771911041419,-507.72635797,0.00017,5]
[406525692,1771911041432,-173.87087054,0.00017,7]
[406525693,1771911041441,-266306.66830407,0.00017,2]
[406525694,1771911041459,-3142.7,0.00017,2]
[406525695,1771911041469,-7417.75449728,0.00017,2]
[406525696,1771911041480,-24215.6140352,0.00017,2]
[406525697,1771911041492,-366368.02261619,0.00017,2]
[406525698,1771911041501,-482.62299928,0.00017042,2]
[406525699,1771911041510,-912.93686295,0.00017086,2]
[406525700,1771911041520,-150.65321488,0.00017114,5]
[406525701,1771911041529,-500.0,0.0001712,5]
[406525702,1771911041538,-483.0,0.00017121,2]
[406525703,1771911041547,-483.0,0.00017139,2]
[406525704,1771911041556,-154.12,0.00017144,2]
[406525705,1771911041565,-336.05,0.00017144,2]
[406525706,1771911041578,-483.0,0.00017165,2]
[406525707,1771911041587,-483.0,0.0001719,2]
[406525708,1771911041597,-483.0,0.00017215,2]
[406525709,1771911041606,-1252.0,0.00017291,2]
[406525710,1771911041617,-483.0,0.00017312,2]
[406525711,1771911041626,-829.12830338,0.00017466,2]
[406525712,1771911041636,-483.0,0.00017477,2]
[406525713,1771911041647,-483.0,0.00017499,2]
[406525714,1771911041656,-483.0,0.00017515,2]
[406525715,1771911041665,-483.0,0.00017519,2]
[406525716,1771911041674,-483.0,0.00017579,2]
[406525717,1771911041683,-483.0,0.00017581,2]
[406525718,1771911041692,-248.95527682,0.00017591,2]
[406525719,1771911041701,-483.0,0.00017592,2]
[406525720,1771911041710,-516.0,0.00017615,4]
[406525721,1771911041720,-422.01,0.00017633,2]
[406525722,1771911041729,-350.0,0.00017634,2]
[406525723,1771911041739,-1593.61813433,0.0001764,2]
[406525724,1771911041748,-1008.0,0.00017647,2]
[406525725,1771911041757,-483.0,0.00017653,2]
[406525726,1771911041767,-483.0,0.0001768,2]
[406525727,1771911041776,-785.08531332,0.000177,2]
[406525728,1771911041785,-403.0,0.000177,5]
[406525729,1771911041794,-990.0,0.000177,2]
[406525730,1771911041803,-1152.0,0.00017701,2]
[406525731,1771911041812,-4609.0,0.00017714,2]
[406525732,1771911041822,-1500.0,0.00017758,2]
[406525733,1771911041831,-1500.0,0.00017758,2]
[406525734,1771911041839,-2614.956964,0.00017758,2]
[406525735,1771911041848,-372.780142,0.00017777,2]
[406525736,1771911041859,-5000.0,0.00017789,2]
[406525737,1771911041867,-1071.00001962,0.00017808,2]
[406525738,1771911041876,-1071.00001962,0.00017808,2]
[406525739,1771911041886,-1071.00001962,0.00017808,2]
[406525740,1771911041894,-1071.00001962,0.00017808,2]
[406525741,1771911041903,-1071.00001962,0.00017808,2]
[406525742,1771911041912,-1071.00001962,0.00017808,2]
[406525743,1771911041922,-1071.00001962,0.00017808,2]
[406525744,1771911041931,-1071.00001962,0.00017808,2]
[406525745,1771911041941,-1071.00001962,0.00017808,2]
[406525746,1771911041950,-1071.00001962,0.00017808,2]
[406525747,1771911041959,-1071.00001962,0.00017808,2]
[406525748,1771911041968,-1071.00001962,0.00017808,2]
[406525749,1771911041977,-1071.00001962,0.00017808,2]
[406525750,1771911041987,-1071.00001962,0.00017808,2]
[406525751,1771911041996,-2114.91533814,0.00017808,2]
[406525752,1771911042005,-2114.91533814,0.00017808,2]
[406525753,1771911042014,-2114.91533814,0.00017808,2]
[406525754,1771911042023,-2114.91533814,0.00017808,2]
[406525755,1771911042032,-2114.91533814,0.00017808,2]
[406525756,1771911042041,-499.37495394,0.00017808,2]
[406525757,1771911042053,-750.97674804,0.00017808,2]
[406525758,1771911042064,-718.06097248,0.00017808,2]
[406525759,1771911042133,-146.50266368,0.00017808,2]
[406525760,1771911042142,-2114.91533814,0.00017808,2]
[406525761,1771911042151,-1901.93556825,0.00017808,2]
[406525762,1771911042166,-212.97976989,0.00017808,2]
[406525763,1771911042176,-541.30404963,0.00017808,2]
[406525764,1771911042189,-1573.61128851,0.00017808,2]
[406525765,1771911042198,-2432.15263887,0.00017808,2]
[406525766,1771911042207,-800.0,0.00017808,2]
[406525767,1771911042217,-6562.937436,0.00017812,7]
[406525768,1771911042226,-284.9132918,0.0001782,2]
[406525769,1771911042236,-309.11765045,0.00017829,2]
[406525770,1771911042246,-198521.73986779,0.0001783,2]
[406525771,1771911042255,-500.0,0.00017844,2]
[406525772,1771911042265,-500.0,0.00017844,2]
[406525773,1771911042273,-500.0,0.00017844,2]
[406525774,1771911042283,-500.0,0.00017844,2]
[406525775,1771911042292,-350.0,0.0001786,2]
[406525776,1771911042301,-1005.12410844,0.0001786,2]
[406525777,1771911042310,-350.0,0.00017862,2]
[406525778,1771911042319,-254.55522464,0.000179,2]
[406525779,1771911042328,-404.07348362,0.000179,2]
[406525780,1771911042337,-10000.0,0.000179,2]
[406525781,1771911042346,-1020.71268231,0.000179,2]
[406525782,1771911042355,-25000.0,0.000179,3]
[406525783,1771911042363,-173.87087054,0.000179,3]
[406525784,1771911042372,-912.93686295,0.000179,2]
[406525785,1771911042381,-384.45849214,0.000179,2]
[406525786,1771911042390,-7909.99843419,0.000179,2]
[406525787,1771911042399,-232.9084823,0.000179,2]
[406525788,1771911042409,-5793.0,0.000179,2]
[406525789,1771911042418,-3072.4779135,0.00017901,2]
[406525790,1771911042426,-1492.4303261,0.00017901,2]
[406525791,1771911042435,-3026.5829455,0.00017901,2]
[406525792,1771911042443,-4943.2836885,0.0001792,2]
[406525793,1771911042452,-500.0,0.0001792,2]
[406525794,1771911042461,-500.0,0.0001792,2]
[406525795,1771911042469,-500.0,0.0001792,2]
[406525796,1771911042478,-500.0,0.0001792,2]
[406525797,1771911042488,-500.0,0.0001792,2]
[406525798,1771911042497,-500.0,0.0001792,2]
[406525799,1771911042506,-500.0,0.0001792,2]
[406525800,1771911042515,-500.0,0.0001792,2]
[406525801,1771911042524,-321973.7206013,0.00017921,2]
[406525803,1771911042533,-95282.0221515,0.00017921,2]
[406525805,1771911042541,-8235.2848415,0.00017921,2]
[406525807,1771911042551,-500.0,0.00017982,2]
[406525809,1771911042559,-155.613,0.00017999,2]
[406525810,1771911042569,-500.0,0.00017999,2]
[406525811,1771911042579,-500.0,0.00017999,2]
[406525812,1771911042589,-301.79248677,0.00017999,2]
[406525813,1771911042598,-500.0,0.00017999,2]
[406525814,1771911042607,-150.0,0.00017999,2]
[406525815,1771911042615,-210.94677836,0.00017999,2]
[406525816,1771911042624,-1233331.91229644,0.00018,2]
[406525817,1771911042636,-46235.07634884,0.00018,2]
[406525818,1771911042648,-558.73659953,0.00018,2]
[406525819,1771911042659,-1836815.97862474,0.00018,2]
[406525820,1771911042668,-656457.10884098,0.00018,2]
[406525821,1771911042679,-6286.2,0.00018,2]
[406525846,1771911042975,-684.31473297,0.00015095,2]
[406525853,1771911043033,-982.31306792,0.00015095,2]
[406525855,1771911043043,-12425.94817461,0.00018,2]
[406525898,1771911045661,-5851.55055853,0.00018,2]
[406525900,1771911045884,-1013.74713103,0.00018,2]
[406525901,1771911045895,-748.36704,0.00018,2]
[406525902,1771911046039,-629.01,0.00018,2]
[406525905,1771911137392,500.0,0.000108,2]
[406525906,1771911138877,500.0,0.000108,2]
[406525907,1771911139363,500.0,0.000108,2]
[406525908,1771911139873,500.0,0.000108,2]
[406525909,1771911140030,500.0,0.000108,2]
[406525910,1771911140516,500.0,0.000108,2]
[406525911,1771911140646,500.0,0.000108,2]
[406525912,1771911140674,500.0,0.000108,2]
[406525913,1771911140851,500.0,0.000108,2]
[406525914,1771911140967,500.0,0.000108,2]
[406525915,1771911141130,500.0,0.000108,2]
[406525916,1771911141356,500.0,0.000108,2]
[406525917,1771911141760,500.0,0.000108,2]
[406525918,1771911142098,500.0,0.000108,2]
[406525919,1771911142591,500.0,0.000108,2]
[406525920,1771911143071,32.11,0.000108,2]
[406525921,1771911143094,467.89,0.000108,2]
[406525922,1771911143551,800.0,0.000108,2]
[406525923,1771911146102,500.0,0.000108,2]
[406525924,1771911146616,500.0,0.000108,2]
[406525925,1771911148849,500.0,0.000108,2]
[406525926,1771911149410,500.0,0.000108,2]
[406525927,1771911149893,500.0,0.000108,2]
[406525928,1771911150243,500.0,0.000108,2]
[406525929,1771911150721,500.0,0.000108,2]
[406525930,1771911150874,500.0,0.000108,2]
[406525931,1771911151210,500.0,0.000108,2]
[406525932,1771911152059,-134.46,0.00013621,30]
[406525933,1771911152108,-31.08,0.00013621,30]
[406525934,1771911152529,500.0,0.000108,2]
[406525935,1771911153002,500.0,3.99e-06,30]
[406525936,1771911153254,500.0,3.99e-06,30]
[406525937,1771911153512,500.0,3.99e-06,30]
[406525938,1771911153542,500.0,0.000108,2]
[406525939,1771911153772,300.0,3.99e-06,30]
[406525940,1771911153795,200.0,3.99e-06,30]
[406525941,1771911154030,500.0,0.000108,2]
[406525942,1771911154514,500.0,0.000108,2]
[406525943,1771911155006,500.0,0.000108,2]
[406525944,1771911155490,500.0,0.000108,2]
[406525945,1771911155984,500.0,0.000108,2]
[406525946,1771911156479,500.0,0.000108,2]
[406525947,1771911157004,232.12,0.000108,2]
[406525948,1771911157027,267.88,0.000108,2]
[406525949,1771911157496,500.0,0.000108,2]
[406525950,1771911157987,500.0,0.000108,2]
[406525951,1771911158518,500.0,0.000108,2]
[406525952,1771911159090,500.0,0.000108,2]
[406525953,1771911187557,4046.919288,7.945e-05,2]
[406525954,1771911239886,3685.210712,0.00011699,2]
[406525955,1771911239907,2936.109288,0.00011699,2]
[406525960,1771911436910,500.0,0.000108,2]
[406525961,1771911437410,600.28022052,0.000108,2]
[406525962,1771911448627,500.0,0.000108,2]
[406525963,1771911449101,500.0,0.000108,2]
[406525964,1771911449603,500.0,0.000108,2]
[406525965,1771911449857,500.0,0.000108,2]
[406525966,1771911449887,506.74229929,0.000108,2]
[406525967,1771911451547,500.0,0.000108,2]
[406525968,1771911452890,500.0,0.000108,2]
[406525969,1771911455950,500.0,0.000108,2]
[406525970,1771911789186,902.02,0.00011599,2]
[406525974,1771911861629,1261.8,0.00011738,2]
[406525975,1771911864964,-4726.67771054,0.00011869,2]
[406525976,1771911865107,-546.65457892,0.00011869,2]
[406525977,1771911865134,-1617.99635608,0.00011869,2]
[406525978,1771911866919,1020.71268233,0.00011869,2]
[406525979,1771911874562,500.0,0.00011869,2]
[406525980,1771911874592,500.0,0.00011869,2]
[406525981,1771911874625,500.0,0.00011869,2]
[406525982,1771911874657,213.75439126,0.00011869,2]
[406525983,1771911874686,500.0,0.00011869,2]
[406525984,1771911874722,500.0,0.00011869,2]
[406525985,1771911874751,476.31120532,0.00011869,2]
[406525986,1771911874780,290.1155594,0.00011869,2]
[406525987,1771911874808,463.87094126,0.00011869,2]
[406525988,1771911874854,500.0,0.00011869,2]
[406525989,1771911874899,205.94335043,0.00011869,2]
[406525990,1771911874925,294.05664957,0.00011869,2]
[406525991,1771911875232,500.0,0.00011869,2]
[406525992,1771911875270,150.0,0.00011869,2]
[406525993,1771911875314,500.0,0.00011869,2]
[406525994,1771911875356,500.0,0.00011869,2]
[406525995,1771911875432,500.0,0.00011869,2]
[406525996,1771911875467,500.0,0.00011869,2]
[406525997,1771911875507,500.0,0.00011869,2]
[406525998,1771911875541,500.0,0.00011869,2]
[406525999,1771911875623,500.0,0.00011869,2]
[406526000,1771911875659,500.0,0.00011869,2]
[406526001,1771911875697,500.0,0.00011869,2]
[406526002,1771911875736,500.0,0.00011869,2]
[406526003,1771911875771,500.0,0.00011869,2]
[406526004,1771911875805,500.0,0.00011869,2]
[406526005,1771911875844,500.0,0.00011869,2]
[406526006,1771911875894,500.0,0.00011869,2]
[406526007,1771911875932,500.0,0.00011869,2]
[406526008,1771911875972,500.0,0.00011869,2]
[406526009,1771911876018,500.0,0.00011869,2]
[406526010,1771911876084,500.0,0.00011869,2]
[406526011,1771911876138,55.95335043,0.00011869,2]
[406526012,1771911876168,444.04664957,0.00011869,2]
[406526013,1771911889474,256.30566144,0.00011869,2]
[406526014,1771911901195,300.0,0.00011869,2]
[406526015,1771911901337,300.0,0.00011869,2]
[406526016,1771911901367,1200.0,0.00011869,2]
[406526017,1771911902063,150.0,0.00011869,2]
[406526018,1771911911143,7349.65768899,0.00011869,2]
[406526019,1771911911165,10000.01,0.00011869,2]
[406526020,1771911911191,10000.01,0.00011869,2]
[406526021,1771911911213,3894.72662201,0.00011869,2]
[406526022,1771911953721,-6760.32581422,0.0001186,2]
[406526023,1771911956739,-10000.01,0.0001186,2]
[406526026,1771912067074,4352.77,0.00011383,2]
[406526027,1771912106084,1868.73754788,0.0001167,2]
[406526028,1771912155042,394.42060268,0.0001167,2]
[406526029,1771912190069,3384.08184944,0.0001167,2]
[406526030,1771912190091,1852.83973814,0.0001167,2]
[406526031,1771912198004,175.98,8.964e-05,2]
[406526038,1771912232300,-254.95687026,0.0001176,2]
[406526039,1771912232310,-254.95687026,0.0001176,2]
[406526040,1771912232319,-151.0,0.00011767,2]
[406526041,1771912232329,-151.0,0.00011767,2]
[406526042,1771912232338,-151.0,0.00011767,2]
[406526043,1771912232347,-300.0,0.00011768,2]
[406526044,1771912232356,-197.66288325,0.00011768,2]
[406526045,1771912232368,-102.33711675,0.00011768,2]
[406526046,1771912232377,-829.55288325,0.00011768,2]
[406526047,1771912232388,-370.44711675,0.00011768,2]
[406526048,1771912232397,-31.62333947,0.00011769,2]
[406526049,1771912232408,-262.10053601,0.00011769,2]
[406526050,1771912232418,-167.35551809,0.00011769,2]
[406526051,1771912232427,-91.04241235,0.00011769,2]
[406526052,1771912232438,-408.95758765,0.00011769,2]
[406526053,1771912232447,-52.21602837,0.00011769,2]
[406526054,1771912232458,-447.78397163,0.00011769,2]
[406526055,1771912232468,-500.0,0.00011769,2]
[406526056,1771912232476,-500.0,0.00011769,2]
[406526057,1771912232485,-500.0,0.00011769,2]
[406526058,1771912232494,-128.1495687,0.00011769,2]
[406526059,1771912232506,-371.8504313,0.00011769,2]
[406526060,1771912232515,-500.0,0.00011769,2]
[406526061,1771912232524,-500.0,0.00011769,2]
[406526062,1771912232533,-500.0,0.00011769,2]
[406526063,1771912232542,-500.0,0.00011769,2]
[406526064,1771912232552,-500.0,0.00011769,2]
[406526065,1771912232561,-500.0,0.00011769,2]
[406526066,1771912232570,-500.0,0.00011769,2]
[406526067,1771912232579,-500.0,0.00011769,2]
[406526068,1771912232588,-500.0,0.00011769,2]
[406526069,1771912232597,-500.0,0.00011769,2]
[406526070,1771912232606,-500.0,0.00011769,2]
[406526071,1771912232615,-500.0,0.00011769,2]
[406526072,1771912232624,-500.0,0.00011769,2]
[406526073,1771912232633,-500.0,0.00011769,2]
[406526074,1771912232642,-500.0,0.00011769,2]
[406526075,1771912232651,-500.0,0.00011769,2]
[406526076,1771912232660,-500.0,0.00011769,2]
[406526077,1771912232669,-500.0,0.00011769,2]
[406526078,1771912232678,-500.0,0.00011769,2]
[406526079,1771912232687,-500.0,0.00011769,2]
[406526080,1771912232696,-500.0,0.00011769,2]
[406526081,1771912232706,-388.60304276,0.00011769,2]
[406526082,1771912232718,-111.39695724,0.00011769,2]
[406526083,1771912232727,-500.0,0.00011769,2]
[406526084,1771912232738,-500.0,0.00011769,2]
[406526085,1771912232747,-500.0,0.00011769,2]
[406526086,1771912232756,-500.0,0.00011769,2]
[406526087,1771912232766,-500.0,0.00011769,2]
[406526088,1771912232779,-500.0,0.00011769,2]
[406526089,1771912232789,-500.0,0.00011769,2]
[406526090,1771912232799,-500.0,0.00011769,2]
[406526091,1771912232808,-500.0,0.00011769,2]
[406526092,1771912232817,-500.0,0.00011769,2]
[406526093,1771912232827,-500.0,0.00011769,2]
[406526094,1771912232836,-500.0,0.00011769,2]
[406526095,1771912232846,-500.0,0.00011769,2]
[406526096,1771912232855,-500.0,0.00011769,2]
[406526097,1771912232864,-500.0,0.00011769,2]
[406526098,1771912232873,-500.0,0.00011769,2]
[406526099,1771912232883,-500.0,0.00011769,2]
[406526100,1771912232893,-500.0,0.00011769,2]
[406526101,1771912232902,-301.10304276,0.00011769,2]
[406526102,1771912232914,-198.89695724,0.00011769,2]
[406526103,1771912232923,-56.61308704,0.00011769,2]
[406526104,1771912232935,-443.38691296,0.00011769,2]
[406526105,1771912232948,-500.0,0.00011769,2]
[406526106,1771912232957,-52.50017648,0.00011769,2]
[406526107,1771912232970,-447.49982352,0.00011769,2]
[406526108,1771912232979,-500.0,0.00011769,2]
[406526109,1771912232990,-500.0,0.00011769,2]
[406526110,1771912233000,-500.0,0.00011769,2]
[406526111,1771912233009,-507.37638739,0.00011769,2]
[406526112,1771912233019,-507.37638739,0.00011769,2]
[406526113,1771912233029,-507.37638739,0.00011769,2]
[406526114,1771912233039,-507.37638739,0.00011769,2]
[406526115,1771912233049,-507.37638739,0.00011769,2]
[406526116,1771912233058,-507.37638739,0.00011769,2]
[406526117,1771912233068,-507.37638739,0.00011769,2]
[406526118,1771912233079,-507.37638739,0.00011769,2]
[406526119,1771912233089,-507.37638739,0.00011769,2]
[406526120,1771912233099,-245.7295959,0.00011769,2]
[406526121,1771912236378,1658.5915251,0.0001167,2]
[406526122,1771912237228,865.56847714,0.0001167,2]
[406526126,1771912237960,-261.64679149,0.00011769,2]
[406526127,1771912237970,-507.37638739,0.00011769,2]
[406526128,1771912237980,-507.37638739,0.00011769,2]
[406526129,1771912237990,-507.37638739,0.00011769,2]
[406526130,1771912237999,-507.37638739,0.00011769,2]
[406526131,1771912238008,-507.37638739,0.00011769,2]
[406526132,1771912238019,-507.37638739,0.00011769,2]
[406526133,1771912238029,-507.37638739,0.00011769,2]
[406526134,1771912238038,-507.37638739,0.00011769,2]
[406526135,1771912238047,-507.37638739,0.00011769,2]
[406526136,1771912238056,-507.37638739,0.00011769,2]
[406526137,1771912238066,-507.37638739,0.00011769,2]
[406526138,1771912238075,-507.37638739,0.00011769,2]
[406526139,1771912238085,-507.37638739,0.00011769,2]
[406526140,1771912238094,-507.37638739,0.00011769,2]
[406526141,1771912238103,-507.37638739,0.00011769,2]
[406526142,1771912238112,-507.37638739,0.00011769,2]
[406526143,1771912238122,-507.37638739,0.00011769,2]
[406526144,1771912238131,-507.37638739,0.00011769,2]
[406526145,1771912238140,-507.37638739,0.00011769,2]
[406526146,1771912238149,-507.37638739,0.00011769,2]
[406526147,1771912238159,-507.37638739,0.00011769,2]
[406526148,1771912238168,-507.37638737,0.00011769,2]
[406526149,1771912238177,-507.37638737,0.00011769,2]
[406526150,1771912238186,-507.37638737,0.00011769,2]
[406526151,1771912238195,-507.37638737,0.00011769,2]
[406526152,1771912238205,-507.37638737,0.00011769,2]
[406526153,1771912238215,-507.37638737,0.00011769,2]
[406526154,1771912238224,-500.0,0.00011769,2]
[406526155,1771912238233,-464.68811137,0.00011769,2]
[406526156,1771912238243,-500.0,0.00011769,2]
[406526158,1771912238253,-500.0,0.00011769,2]
[406526160,1771912238262,-500.0,0.00011769,2]
[406526161,1771912238276,-500.0,0.00011769,2]
[406526162,1771912238285,-500.0,0.00011769,2]
[406526163,1771912238295,-614.84512344,0.00011769,2]
[406526164,1771912238305,-500.0,0.00011769,2]
[406526165,1771912238316,-1200.0,0.00011769,2]
[406526166,1771912238325,-60710.16774712,0.0001177,2]
[406526167,1771912238338,-3300227.74441994,0.0001177,2]
[406526168,1771912238350,-828.73,0.0001177,2]
[406526169,1771912238367,-1503.20181405,0.0001177,2]
[406526170,1771912240167,-1007.13439523,0.0001177,2]
[406526171,1771912240319,-131343.70289952,0.0001177,2]
[406526172,1771912240377,-4379.31872414,0.0001177,2]
[406526173,1771912240387,-294645.768,0.0001177,2]
[406526174,1771912240396,-26713.97897549,0.0001177,2]
[406526175,1771912240405,-500.0,0.0001177,2]
[406526176,1771912240415,-716.0,0.00011836,2]
[406526177,1771912240425,-250.0,0.00011848,2]
[406526178,1771912240434,-300.0,0.00011859,2]
[406526179,1771912240444,-13163.38858392,0.0001186,2]
[406526180,1771912240453,-250.0,0.00011861,2]
[406526181,1771912240463,-150.0,0.00011869,2]
[406526182,1771912240472,-1845.37,0.0001197,2]
[406526183,1771912240482,-73296.22,0.0001197,2]
[406526184,1771912240491,-500.0,0.00012044,2]
[406526185,1771912240500,-500.0,0.000121,2]
[406526186,1771912240510,-5919.05,0.0001219,2]
[406526187,1771912240519,-499.99,0.0001219,2]
[406526188,1771912240529,-9999.99,0.0001219,2]
[406526189,1771912240539,-9999.99,0.0001219,2]
[406526190,1771912240548,-1543.16,0.0001219,2]
[406526191,1771912240558,-151.0,0.00012193,2]
[406526192,1771912240567,-151.0,0.00012193,2]
[406526193,1771912240577,-151.0,0.00012193,2]
[406526194,1771912240586,-151.0,0.00012193,2]
[406526195,1771912240595,-151.0,0.00012193,2]
[406526196,1771912240605,-202.29696668,0.00012193,2]
[406526197,1771912240614,-151.0,0.00012193,2]